[Event "Arsen Yeghiazaryan Memorial 2022"]
[Site "Yerevan"]
[Date "2022.07.04"]
[Round "4.5"]
[White "Yeremyan, Alen"]
[Black "Atakhan, Abtin"]
[Result "1/2-1/2"]
[ECO "B11"]
[WhiteElo "2233"]
[BlackElo "2344"]
[Annotator "TA"]
[PlyCount "172"]
[EventDate "2022.06.30"]
[EventType "tourn"]
[EventCountry "ARM"]
[SourceTitle "playchess.com"]
[Source "ChessBase"]
[SourceQuality "1"]
[TimeControl "40/5400+30:1800+30"]

{[%evp 9,172,-43,-43,-64,-29,-48,-46,-39,-20,-43,-23,-42,0,-11,-14,-8,-21,-17,-12,-21,-4,-8,-3,-7,0,0,0,0,0,-4,62,58,75,55,58,25,50,50,69,44,106,0,42,0,36,58,81,54,72,75,111,59,187,21,16,18,102,101,110,105,85,48,59,54,219,146,143,140,124,100,91,81,207,213,213,213,213,213,206,206,172,81,179,150,1393,161,409,167,215,31,72,64,64,64,64,64,64,64,447,445,435,414,430,412,378,362,597,597,498,493,444,308,471,419,457,428,420,387,4153,4153,4153,4153,4153,4153,4153,4153,4153,66,66,66,66,66,66,66,66,66,66,66,109,0,66,0,109,109,109,109,109,109,109,109,109,109,109,109,109,109,109,109,109,8,8,0,0,0,0]} 1. e4 {[%emt 0:00:03]} c6 {[%emt 0:00:33]} 2. Nc3 {[%emt 0:00:26]} d5 {[%emt 0:01:04]} 3. Qe2 {[%emt 0:00:30]} d4 {[%emt 0:00:38]} 4. Nd1 {[%emt 0:00:03]} e5 {[%emt 0:00:03]} 5. g3 {[%emt 0:00:43]} Bd6 {[%emt 0:02:02]} 6. Bg2 {[%emt 0:00:59] B11: Caro-Kann: Two Knights Variation.} Qc7 {[%emt 0:01:25]} 7. d3 {[%emt 0:00:58][%cal Of2f4]} Ne7 {[%emt 0:03:06]} 8. Nf3 {[%emt 0:01:13][%cal Bg1f3,Bf3d2,Bd2c4][%mdl 32] [#] Black is slightly better.} c5 $146 {[%emt 0:10:01]} ({Predecessor:} 8... Bg4 9. h3 Bh5 10. O-O c5 11. b3 Nd7 12. Nb2 Nc6 13. g4 Bg6 14. Nh4 Nf8 {1-0 (85) Deviatkin,A (2569)-Wallace,J (2398) Groningen 2012}) 9. O-O {[%emt 0:00:33]} Ng6 {[%emt 0:03:37]} 10. Nd2 {[%emt 0:06:40]} h5 {[%emt 0:06:05]} 11. Nc4 {[%emt 0:11:12]} h4 {[%emt 0:16:31]} 12. f4 {[%emt 0:06:57]} hxg3 {[%emt 0:03:31]} 13. hxg3 {[%emt 0:00:08]} Nc6 {[%emt 0:18:52][%cal Re5f4]} 14. f5 {[%emt 0:09:34]} Nf8 {[%emt 0:00:53]} 15. Nxd6+ {[%emt 0:02:03]} Qxd6 {[%emt 0:00:02]} 16. c4 {[%emt 0:02:03]} Bd7 {[%emt 0:02:50]} 17. Bd2 {[%emt 0:02:52]} Nh7 {[%emt 0:00:36]} 18. a3 {[%emt 0:01:39]} Nf6 {[%emt 0:01:15]} 19. Nf2 {[%emt 0:02:18][%cal Ob2b4]} Ke7 {[%emt 0:01:43]} (19... O-O-O $11) 20. b4 $14 {[%emt 0:08:33]} b6 {[%emt 0:03:43][%cal Rc5b4]} 21. b5 {[%emt 0:03:06]} Na5 {[%emt 0:02:37]} 22. Rab1 {[%emt 0:03:16] Against Nb3} Rag8 {[%emt 0:00:27]} 23. g4 $1 {[%emt 0:03:59]} Kd8 {[%emt 0:04:30]} 24. Qf3 {[%emt 0:03:40]} (24. g5 $5 {[%cal Rg5f6]} Nh5 25. Qf3 $16 (25. Bxa5 Ng3 $17)) 24... g6 {[%emt 0:06:31]} ({Black should play} 24... g5 $14) 25. Rfe1 {[%emt 0:08:34]} (25. g5 $16) 25... Kc8 {[%emt 0:01:00]} 26. Kf1 {[%emt 0:01:25]} Kc7 {[%emt 0:03:33]} (26... Rh2 27. g5 $16) (26... Rh4 $5 {[%cal Rg6f5]}) 27. Ke2 {[%emt 0:04:53]} Bc8 {[%emt 0:00:01]} 28. Rh1 {[%emt 0:01:57]} Rxh1 {[%emt 0:00:01]} 29. Rxh1 {[%emt 0:01:21] And now g5 would win.} Nb3 {[%emt 0:02:19]} 30. Be1 {[%emt 0:02:56]} ({White should try} 30. g5 $16) 30... Bb7 {[%emt 0:01:54]} (30... Qe7 $14) 31. Kd1 $2 {[%emt 0:01:21]} (31. g5 $18) 31... gxf5 $11 {[%emt 0:00:29]} 32. gxf5 {[%emt 0:02:02]} Nd7 {[%emt 0:00:01]} (32... a6 $11 33. a4 Qf8) 33. Kc2 $16 {[%emt 0:00:34]} Na5 {[%emt 0:00:11][%cal Bb3a5,Ba5b7,Bb7d6][%mdl 32]} 34. Bd2 {[%emt 0:00:39]} Bc8 {[%emt 0:00:36]} 35. Rh6 {[%emt 0:01:03]} Qf8 {[%emt 0:00:34]} 36. Ng4 {[%emt 0:01:05]} Rh8 $2 {[%emt 0:01:05]} (36... a6 $14) 37. Qg3 {[%emt 0:00:58][%cal Og4e5]} Rxh6 {[%emt 0:00:39]} 38. Nxh6 {[%emt 0:00:46]} (38. Bxh6 Qg8 $16) 38... Nb7 {[%emt 0:01:19]} 39. Bf3 {[%emt 0:01:43] White is much more active.} Nd6 {[%emt 0:00:12]} 40. Bh5 {[%emt 0:00:00]} Nf6 {[%emt 0:00:00] [#]} (40... Bb7 $16) 41. Qxe5 $1 $18 {[%emt 0:08:01]} Nxh5 {[%emt 0:02:34]} 42. f6 {[%emt 0:00:46]} Nxf6 {[%emt 0:00:44]} 43. Qxf6 {[%emt 0:00:02] Black must now prevent Bf4.} Be6 {[%emt 0:01:23]} 44. Bf4 {[%emt 0:00:38] Hoping for Nf5.} Kd7 {[%emt 0:00:47]} 45. Qg5 {[%emt 0:04:51]} (45. Bg5 $18 {has better winning chances.}) 45... f6 {[%emt 0:02:08]} (45... Qe7 $16) 46. Qg2 $1 {[%emt 0:01:00] Threatens to win with e5.} Ke7 $2 {[%emt 0:04:28]} (46... Ke8 $16 47. a4 (47. Qg6+ Kd7 $16) 47... Kd8) 47. a4 $2 {[%emt 0:04:57]} (47. e5 $1 {[%cal Re5d6]} fxe5 48. Bg5+ Qf6 49. Bxf6+ Kxf6 50. Qc6) 47... Ne8 {[%emt 0:03:13]} (47... Ke8 {might work better.} 48. Ng4 Bxg4) 48. Nf5+ {[%emt 0:01:30]} (48. Qh1 $142) 48... Kd7 {[%emt 0:02:35] [#]} (48... Kd8 $142 49. a5 Qf7) 49. Nh4 $2 {[%emt 0:02:20]} (49. e5 $1 $18 {Threatening mate with Qc6+.} Bxf5 50. Qb7+ Kd8 51. e6 (51. Qxa7 Qg7 $11) 51... Bxe6 52. Qxa7) 49... Qh8 {[%emt 0:01:36]} 50. Ng6 {[%emt 0:02:13]} Qh3 {[%emt 0:07:30]} 51. Qxh3 {[%emt 0:01:28] The board is on fire.} Bxh3 $14 {[%emt 0:00:02][%mdl 4096] Endgame KBN-KBN} 52. a5 {[%emt 0:01:07]} bxa5 {[%emt 0:00:13]} 53. Bb8 {[%emt 0:00:51]} a6 {[%emt 0:07:41][%mdl 8192]} (53... Nd6 $1 $14) 54. bxa6 $18 {[%emt 0:00:33] Intending a7 and mate.} Kc8 {[%emt 0:00:20]} 55. Ba7 {[%emt 0:01:26]} Nc7 {[%emt 0:00:09]} 56. Bxc5 {[%emt 0:00:24]} Nxa6 {[%emt 0:00:02]} 57. Bxd4 {[%emt 0:00:16]} Bf1 $2 {[%emt 0:00:50]} (57... Nb4+ 58. Kc3 Bf1) 58. Nf4 {[%emt 0:00:32]} a4 {[%emt 0:01:26]} 59. Bxf6 {[%emt 0:01:03]} Kd7 {[%emt 0:00:16]} 60. Bd4 {[%emt 0:02:01] aiming for Kd2.} a3 {[%emt 0:00:16]} (60... Nc7 $142 61. Bb2 Ne6) 61. e5 {[%emt 0:02:05]} ({Weaker is} 61. Kb3 a2 62. Ba1 (62. Kxa2 Nb4+ 63. Kb3 Nxd3 $16) 62... Nc5+ 63. Kc3 (63. Kxa2 Nxd3 64. Ng6 Bg2 $11) 63... Kd6 $18) 61... Nb4+ {[%emt 0:02:12]} 62. Kc3 {[%emt 0:01:15]} Nc6 {[%emt 0:00:41] [#]} 63. e6+ $1 {[%emt 0:00:33]} Kd6 $2 {[%emt 0:00:58]} (63... Ke8 64. Bf6 a2) 64. Bf6 {[%emt 0:01:09]} a2 {[%emt 0:00:19]} 65. Kb2 {[%emt 0:02:09]} Nb4 {[%emt 0:02:09]} 66. c5+ {[%emt 0:01:41]} Kc6 {[%emt 0:00:10]} 67. e7 {[%emt 0:02:45]} Kd7 {[%emt 0:00:16] [#]} 68. Kb3 $2 {[%emt 0:01:00]} (68. Ka1 $1 $18 Nc6 69. Kxa2) 68... a1=Q {[%emt 0:00:32]} 69. Bxa1 {[%emt 0:00:24]} Nxd3 {[%emt 0:00:02]} 70. Nxd3 {[%emt 0:01:08]} Bxd3 $14 {[%emt 0:00:01] KB-KB} 71. Bf6 $1 {[%emt 0:00:05][%cal Oc5c6] White threatens c6+! and mate.} Be4 {[%emt 0:00:18]} 72. Kc4 {[%emt 0:00:19]} Bc6 {[%emt 0:02:46]} 73. Kd4 {[%emt 0:00:02]} Bf3 {[%emt 0:01:05]} 74. Kc4 {[%emt 0:00:01]} Bc6 {[%emt 0:00:08]} 75. Kd4 {[%emt 0:00:04]} Bf3 $1 {[%emt 0:00:02]} 76. Ke5 {[%emt 0:00:06]} Bc6 {[%emt 0:01:10]} 77. Bg5 {[%emt 0:00:01]} Bf3 {[%emt 0:00:47]} 78. Kf6 {[%emt 0:00:02]} Bh5 {[%emt 0:00:22]} 79. Bf4 {[%emt 0:00:15]} Be8 {[%emt 0:00:19]} 80. Bd6 {[%emt 0:00:18]} Bh5 {[%emt 0:00:07]} 81. Kg7 {[%emt 0:00:34]} Be8 {[%emt 0:00:20]} 82. Kg8 {[%emt 0:00:11]} Bh5 {[%emt 0:00:27]} 83. Kf8 {[%emt 0:00:07]} Bg6 {[%emt 0:00:07]} 84. e8=B+ {[%emt 0:03:38]} ({Better is} 84. Bh2 $16) 84... Bxe8 $11 {[%emt 0:00:07] The position is equal.} 85. c6+ {[%emt 0:00:02]} Kxd6 {[%emt 0:00:06]} 86. Kxe8 {[%emt 0:00:03]} Kxc6 {[%emt 0:00:02] Black escapes into a draw.  Weighted Error Value: White=0.45/Black=0.52} 1/2-1/2

[Event "Arsen Yeghiazaryan Memorial 2022"]
[Site "Yerevan"]
[Date "2022.07.05"]
[Round "5.1"]
[White "Piliposyan, Robert"]
[Black "Yeremyan, Alen"]
[Result "1/2-1/2"]
[ECO "D85"]
[WhiteElo "2287"]
[BlackElo "2233"]
[Annotator "TA"]
[PlyCount "100"]
[EventDate "2022.06.30"]
[EventType "tourn"]
[EventCountry "ARM"]
[SourceTitle "playchess.com"]
[Source "ChessBase"]
[SourceQuality "1"]
[TimeControl "40/5400+30:1800+30"]

{[%evp 16,100,4,18,5,6,12,10,11,7,16,29,22,8,48,76,122,101,120,115,117,43,87,77,116,40,156,148,135,120,108,71,94,80,100,73,113,98,98,98,130,124,131,0,0,0,0,0,8,-7,-7,-7,-7,-8,0,0,0,0,0,0,0,0,0,0,0,0,0,0,0,0,0,0,0,0,0,0,0,0,0,0,0,0,0,0,0,-29987,0]} 1. d4 {[%emt 0:00:08] Fischer,J} Nf6 {[%emt 0:00:07]} 2. c4 {[%emt 0:00:05]} g6 {[%emt 0:00:06]} 3. Nc3 {[%emt 0:00:04]} d5 {[%emt 0:00:07]} 4. cxd5 {[%emt 0:00:05]} Nxd5 {[%emt 0:00:05]} 5. Na4 {[%emt 0:00:04]} Bg7 {[%emt 0:02:55]} 6. e4 {[%emt 0:00:12]} Nb6 {[%emt 0:01:20]} 7. Be3 {[%emt 0:00:14]} O-O {[%emt 0:01:35]} 8. Nf3 {[%emt 0:00:10]} Nxa4 {[%emt 0:02:42]} 9. Qxa4 {[%emt 0:00:11]} c5 {[%emt 0:03:18] D85: Exchange Grünfeld: Unusual White 7th moves and lines with 7 Nf3.} 10. Rd1 {[%emt 0:00:11]} Bg4 {[%emt 0:06:27]} 11. dxc5 {[%emt 0:09:07]} Qc7 {[%emt 0:00:57] The position is equal.} 12. Qa3 {[%emt 0:14:39]} Nd7 {[%emt 0:06:00]} 13. Be2 {[%emt 0:09:30]} b6 {[%emt 0:03:21] [#]} 14. c6 $146 {[%emt 0:06:54]} ({Predecessor:} 14. b4 a5 15. cxb6 axb4 16. Qxa8 Qc3+ 17. Bd2 Rxa8 18. Bxc3 Bxc3+ 19. Nd2 Nxb6 20. Bxg4 {½-½ (56) Keymer,V (2342)-Carow,J (2431) Saarbruecken 2015 CBM 169 Extra [Fischer,J]}) 14... Ne5 {[%emt 0:13:38]} 15. Rc1 {[%emt 0:17:16]} Nxf3+ {[%emt 0:05:42]} (15... Nxc6 $142 16. O-O a6) 16. Bxf3 {[%emt 0:00:50]} Bxf3 {[%emt 0:00:35]} 17. gxf3 {[%emt 0:00:03]} Qe5 {[%emt 0:02:03]} 18. Qb3 {[%emt 0:06:13]} (18. O-O $16) 18... Rac8 {[%emt 0:02:17]} 19. Ke2 {[%emt 0:05:32]} Rc7 {[%emt 0:01:44]} 20. Rhd1 {[%emt 0:01:57]} (20. Rc2 $1 $16) 20... Qxh2 {[%emt 0:09:21]} (20... Qxb2+ $14 21. Rc2 Qe5) 21. Rd7 $16 {[%emt 0:01:13][%cal Oc1h1]} Be5 {[%emt 0:03:10]} 22. Rxc7 {[%emt 0:07:02]} Bxc7 {[%emt 0:00:01]} 23. Qa3 {[%emt 0:00:07]} Qe5 {[%emt 0:06:54]} 24. Qxa7 {[%emt 0:01:01]} Rd8 {[%emt 0:09:29][%cal Bf8d8,Bd8d3,Bd3b3,Bb3b2,Bb2a2][%mdl 32]} 25. Ke1 {[%emt 0:03:50] Active counter play!} g5 {[%emt 0:02:12] Prevents f4.} 26. Bxb6 {[%emt 0:03:44]} Qxb2 {[%emt 0:03:40]} 27. Be3 {[%emt 0:00:15]} Rd3 {[%emt 0:03:17]} 28. Qc5 {[%emt 0:04:52]} (28. Qxc7 $6 Rxe3+ 29. fxe3 Qxc1+ 30. Ke2 Qc2+ 31. Ke1 Qc1+ 32. Kf2 Qd2+ 33. Kf1 (33. Kg3 Qxe3 34. Kg2 Qe2+ 35. Kg3 Qe3 $11) 33... Qd3+ 34. Kg1 Qxe3+ 35. Kg2 Qe2+ 36. Kg3 Qe1+ 37. Kh3 Qh1+ 38. Kg3 Qe1+ 39. Kh3 Qh1+ 40. Kg3 Qe1+ $11) 28... h6 {[%emt 0:01:52] [#]} 29. Kf1 {[%emt 0:01:49]} ({White should try} 29. a4 $1 $16) 29... Qxa2 $11 {[%emt 0:02:15]} 30. Qb5 {[%emt 0:05:37]} ({Of course not} 30. Qxe7 {[#]} Rxe3 $1 31. Qxc7 (31. fxe3 $2 {is the wrong capture.} Bg3 $19) (31. Qe8+ $2 Kg7 $19) 31... Qe2+ 32. Kg1 Rxf3 33. Qd8+ Kh7 $17) 30... Rb3 {[%emt 0:02:09]} 31. Qc4 {[%emt 0:01:16]} Rb2 {[%emt 0:01:16]} 32. Qxa2 {[%emt 0:01:47]} (32. Qd4 {with more complications.} Qa3 33. Rd1 Rc2 34. Qd7) 32... Rxa2 {[%emt 0:00:01][%mdl 4096] Endgame KRB-KRB} 33. Rd1 $132 {[%emt 0:00:00][%mdl 2048] Threatens to win with Rd7. White puts up resistance} Rc2 {[%emt 0:01:28]} 34. Rd7 {[%emt 0:00:11]} Rxc6 {[%emt 0:00:57] aiming for ...Kf8.} 35. Rxe7 {[%emt 0:00:03]} Bb6 {[%emt 0:00:11]} 36. Bxb6 {[%emt 0:00:45]} Rxb6 {[%emt 0:00:01] KR-KR} 37. Re5 {[%emt 0:00:11]} Kg7 {[%emt 0:00:05]} 38. Kg2 {[%emt 0:00:09]} Kg6 {[%emt 0:00:17]} (38... f6 $5 {[%cal Rf6e5]} 39. Re7+ Kg6 $11) 39. Kg3 {[%emt 0:00:28]} h5 {[%emt 0:00:15]} 40. Rf5 {[%emt 0:00:00]} f6 {[%emt 0:00:00]} 41. Kg2 $1 {[%emt 0:01:52]} Re6 {[%emt 0:00:49] And now ...Re5 would win.} 42. Rd5 {[%emt 0:00:37]} Re5 {[%emt 0:00:52] White must now prevent ...Rxd5.} 43. Rd8 {[%emt 0:00:16]} Ra5 {[%emt 0:00:22]} 44. Rd6 {[%emt 0:00:19]} g4 {[%emt 0:00:24]} 45. fxg4 {[%emt 0:00:24]} hxg4 {[%emt 0:00:07]} 46. f3 {[%emt 0:00:16]} gxf3+ {[%emt 0:00:01]} 47. Kxf3 {[%emt 0:00:06]} Kg5 {[%emt 0:00:04]} 48. Re6 {[%emt 0:00:13]} f5 {[%emt 0:00:17]} 49. exf5 {[%emt 0:00:05]} Kxf5 {[%emt 0:00:08]} 50. Rg6 {[%emt 0:00:01][%mdl 8192]} Ra8 $2 {[%emt 0:00:26] Never resign too early!  Weighted Error Value: White=0.27 (precise) /Black=0.14 (very precise)} (50... Ra3+ {mates} 51. Ke2 Kxg6 52. Kf2 Kf6 53. Ke2 Kf5 54. Kd2 Ke4 55. Kc2 Kd4 56. Kd2 Ra2+ 57. Kd1 Ke3 58. Kc1 Kd3 59. Kb1 Rc2 60. Ka1 Kc3 61. Kb1 Kb3 62. Ka1 Rc1#) 1/2-1/2

[Event "Arsen Yeghiazaryan Memorial 2022"]
[Site "Yerevan"]
[Date "2022.07.05"]
[Round "5.2"]
[White "Atakhan, Abtin"]
[Black "Yeritsyan, Hayk"]
[Result "1-0"]
[ECO "A36"]
[WhiteElo "2344"]
[BlackElo "2249"]
[Annotator "TA"]
[PlyCount "123"]
[EventDate "2022.06.30"]
[EventType "tourn"]
[EventCountry "ARM"]
[SourceTitle "playchess.com"]
[Source "ChessBase"]
[SourceQuality "1"]
[TimeControl "40/5400+30:1800+30"]

{[%evp 9,123,8,8,-1,2,5,4,13,11,0,14,5,25,25,5,6,22,27,61,65,74,58,54,57,48,39,49,21,20,14,14,7,7,6,17,0,12,0,0,0,0,0,0,0,0,0,0,0,0,0,2,-8,0,0,0,0,16,22,39,8,136,128,125,135,253,243,218,0,0,0,0,0,84,83,83,83,84,84,87,83,87,0,452,258,258,258,258,258,1366,1264,1099,1195,5804,5618,4627,1281,29960,29964,29961,29965,29963,29963,29962,29962,7116,4627,29970,29972,29971,29972,8145,8145,4610,1652,29981,29982]} 1. c4 {[%emt 0:04:40]} c5 {[%emt 0:00:35]} 2. Nc3 {[%emt 0:00:58]} g6 {[%emt 0:00:09]} 3. g3 {[%emt 0:00:35]} Bg7 {[%emt 0:00:14]} 4. Bg2 {[%emt 0:00:10]} d6 {[%emt 0:00:59]} 5. d3 {[%emt 0:01:24]} Nc6 {[%emt 0:00:25]} 6. Qd2 {[%emt 0:07:27] A36: Symmetrical English vs ...g6: 4 Bg2 Bg7.} e5 {[%emt 0:01:17]} 7. b3 {[%emt 0:00:38]} Nge7 {[%emt 0:00:16]} 8. Bb2 {[%emt 0:00:17] The position is equal.} Be6 {[%emt 0:01:40]} 9. Nd5 {[%emt 0:00:56]} Rb8 {[%emt 0:05:54]} 10. e3 {[%emt 0:02:25]} b5 {[%emt 0:03:38]} 11. Ne2 {[%emt 0:00:28]} O-O {[%emt 0:00:45]} 12. O-O {[%emt 0:01:41] [#]} Qd7 $146 {[%emt 0:05:32]} ({Predecessor:} 12... f5 13. Rad1 Bxd5 14. cxd5 Nb4 15. Nc3 Na6 16. f4 Nc7 17. fxe5 Bxe5 18. d4 cxd4 19. exd4 {1-0 (38) Badelka,O (2427)-Toufighi,H (2439) Chess.com INT 2020}) 13. f4 {[%emt 0:04:55]} Bh3 {[%emt 0:05:04]} 14. Bxh3 {[%emt 0:12:05] White is more active.} Qxh3 {[%emt 0:00:09]} 15. Nec3 {[%emt 0:00:37]} Nxd5 {[%emt 0:13:21]} 16. Nxd5 {[%emt 0:00:44]} Nb4 {[%emt 0:04:47]} 17. Nxb4 {[%emt 0:11:31]} cxb4 {[%emt 0:00:09]} 18. Rac1 {[%emt 0:11:56]} ({Stronger than} 18. Qxb4 exf4 19. Bxg7 fxg3 $17) 18... a5 {[%emt 0:03:25]} 19. e4 {[%emt 0:07:47]} Bh6 {[%emt 0:07:57]} 20. Qg2 {[%emt 0:05:00]} Qxg2+ {[%emt 0:03:21]} 21. Kxg2 {[%emt 0:00:03]} f5 {[%emt 0:00:13]} 22. Rce1 {[%emt 0:01:43]} exf4 {[%emt 0:04:18]} 23. gxf4 {[%emt 0:00:51]} (23. exf5 {keeps more tension.} Rxf5 24. g4 Rf7 25. h4) 23... bxc4 {[%emt 0:00:21]} 24. dxc4 {[%emt 0:00:24]} fxe4 {[%emt 0:00:21]} 25. Rxe4 {[%emt 0:00:19]} Rf5 {[%emt 0:03:21]} 26. Re7 {[%emt 0:00:52]} Rbf8 {[%emt 0:03:49]} 27. Rd7 {[%emt 0:02:00]} Re8 {[%emt 0:02:33]} 28. Rf2 {[%emt 0:03:54] Against Re2} Bf8 {[%emt 0:03:12]} 29. Rb7 {[%emt 0:03:34]} h5 {[%emt 0:05:19]} 30. h4 {[%emt 0:03:27]} Bh6 {[%emt 0:01:42]} 31. Bc1 {[%emt 0:00:17]} Bg7 {[%emt 0:02:26]} 32. Kf3 {[%emt 0:00:44]} Re1 {[%emt 0:01:17]} 33. Be3 {[%emt 0:01:18]} d5 {[%emt 0:00:49]} 34. Rg2 {[%emt 0:01:45]} d4 {[%emt 0:01:47]} (34... dxc4 $1 $11 35. Rxg6 Rf7 36. Rb8+ Kh7) 35. Bf2 $16 {[%emt 0:01:00]} Re6 {[%emt 0:03:18] Threatens to win with ...Bh6.} 36. Rg5 $1 {[%emt 0:01:29]} Rxg5 {[%emt 0:03:40]} (36... d3 $16 {might work better.}) 37. fxg5 {[%emt 0:00:07][%mdl 4096] Endgame KRB-KRB} ({Don't play} 37. hxg5 $6 d3 $16) 37... d3 {[%emt 0:00:54] Strongly threatening ...Rd6.} 38. c5 {[%emt 0:02:34] Inhibits Rd6.} (38. Rd7 $18) 38... Bd4 $11 {[%emt 0:04:16] ( -> ...d2)} 39. Rd7 {[%emt 0:00:14]} ({But not} 39. Bxd4 $2 d2 40. Rb8+ Kf7 41. Rb7+ Ke8 $19) 39... Bxf2 {[%emt 0:00:08]} 40. Kxf2 {[%emt 0:00:00] KR-KR} Re2+ {[%emt 0:00:00]} (40... Rc6 $1 $11) 41. Kf3 $16 {[%emt 0:00:08] aiming for c6.} Rc2 {[%emt 0:04:08]} 42. Rxd3 {[%emt 0:04:35]} Rxc5 {[%emt 0:01:49]} 43. Ke4 {[%emt 0:00:59] Black must now prevent Rd5.} Rc2 {[%emt 0:03:18] [#]} 44. Ke5 $1 {[%emt 0:00:48]} Rf2 {[%emt 0:01:02]} 45. Ke6 {[%emt 0:05:02]} (45. Rd8+ $16 Kg7 46. Rd7+ Kg8 47. Ra7) 45... Kg7 $2 {[%emt 0:04:12][%mdl 8192] White leaves nothing to chance now.} (45... Rxa2 $2 46. Kf6 Rf2+ 47. Kxg6 $18) (45... Rf4 $1 $11 {and Black stays safe.}) 46. Rd7+ $18 {[%emt 0:00:24]} Kg8 {[%emt 0:00:01] [#]} 47. Rd5 $1 {[%emt 0:03:31]} Kg7 {[%emt 0:00:08]} 48. Rxa5 {[%emt 0:00:27]} Re2+ $2 {[%emt 0:00:07]} (48... Rf4 49. Ra7+ Kf8) 49. Re5 {[%emt 0:02:57]} Rxa2 {[%emt 0:03:33]} 50. Re4 {[%emt 0:00:05]} Rg2 {[%emt 0:00:37]} 51. Rxb4 {[%emt 0:01:08] White wants to mate with Rb7+.} Re2+ {[%emt 0:00:59]} 52. Kd5 {[%emt 0:00:47] Re4 would kill now.} Rd2+ {[%emt 0:00:15]} 53. Rd4 {[%emt 0:00:29]} Rb2 {[%emt 0:00:02]} 54. b4 {[%emt 0:00:23][%cal Bb3b4,Bb4b5,Bb5b6][%mdl 32]} Kf7 {[%emt 0:00:01]} 55. Re4 {[%emt 0:00:23]} Rd2+ {[%emt 0:00:17]} 56. Kc5 {[%emt 0:00:52]} Rc2+ {[%emt 0:00:24]} 57. Rc4 {[%emt 0:01:03]} Rb2 {[%emt 0:00:03]} 58. b5 {[%emt 0:01:41]} Ke7 {[%emt 0:00:01]} 59. b6 {[%emt 0:01:41]} Kd7 {[%emt 0:00:09]} 60. Rb4 {[%emt 0:00:45]} Rc2+ {[%emt 0:00:03]} 61. Kd5 {[%emt 0:00:13] Intending b7 and mate.} Kc8 {[%emt 0:00:05]} 62. Rc4+ {[%emt 0:00:04] Weighted Error Value: White=0.10 (very precise) /Black=0.61} 1-0